Cogmind - Beta 11.1 @@@ ROGUE MODE // 2022.08.10 @ 23:03:58 Player: tkc Result: Destroyed by H-66 Slayer with Heavy Assault Rifle Performance ------------- Evolutions (4) 2000 Regions Visited (11) 2200 Robots Destroyed (152) 760 Value Destroyed (3463) 3463 Prototype IDs (8) 160 Alien Tech Used (0) 0 Bonus (228) 228 TOTAL SCORE: 8811 Bonus ------- High Alert Combat Kills 41 Follower Combat Kills 187 Cogmind --------- Core Integrity 0/850 Matter 300/300 Energy 99/100 System Corruption 0% Temperature Cool (0) Movement Core (50) Location -6/Factory Parts ------- > --- POWER (1) -------- (None) > --- PROPULSION (4) --- (None) > --- UTILITY (8) ------ (None) > --- WEAPON (2) ------- (None) > --- INVENTORY (5) ---- Carbon-fiber Leg Terrain Scanner Improved Particle Charger Peak State ------------ > --- POWER ------------ Light Angular Momentum Engine > --- PROPULSION ------- Armored Huge Wheel Centrium Wheel > --- UTILITY ---------- High-capacity Storage Unit Improved Signal Interpreter Hardened Medium Armor Plating Medium Reactive Plating Hacking Suite System Shield System Shield System Shield > --- WEAPON ----------- Proton Cannon Makeshift Hammer > --- INVENTORY -------- Light Angular Momentum Engine Carbon-fiber Leg Carbon-fiber Leg Terrain Scanner Improved Particle Charger Heavy Laser Greatsword [Rating: 54] Favorites ----------- Power Heavy Ion Engine Engine Heavy Ion Engine Power Core Light Nuclear Core Propulsion Compact Wheel Treads Light Treads Leg Carbon-fiber Leg Wheel Compact Wheel Hover Unit Airjet Utility High-capacity Storage Unit Device Terrain Scanner Storage High-capacity Storage Unit Processor Terrain Scan Processor Hackware System Shield Protection Light Armor Plating Weapon Lightning Gun Energy Gun Lightning Gun Energy Cannon Light EM Pulse Cannon Ballistic Gun Shotgun Ballistic Cannon Slug Cannon Launcher Rocket Launcher Special Weapon Mining Laser Impact Weapon Makeshift Hammer Slashing Weapon Makeshift Axe Piercing Weapon Makeshift Spear Special Melee Weapon Datajack Build | -11 -10 -10 -9 -9 -9 -8 -8 -7 -6 -6 -6 ------- Run | Scr Mat Min Mat Min Exi Min Mat Fac Fac Was Fac Slots Evolved 8 | . . . 2 . . . 2 2 2 . . Power . | . . . . . . . . . . . . Propulsion 2 | . . . . . . . . 1 1 . . Utility 6 | . . . 2 . . . 2 1 1 . . Weapon . | . . . . . . . . . . . . Parts Attached 221 | 7 21 20 45 1 3 7 51 45 3 5 13 Power 17 | 1 2 3 2 . . 1 5 1 . . 2 Engine 13 | 1 1 3 2 . . 1 2 1 . . 2 Core 4 | . 1 . . . . . 3 . . . . Reactor . | . . . . . . . . . . . . Propulsion 33 | 2 1 6 7 1 . 1 6 6 1 1 1 Treads 14 | 1 . 1 4 . . 1 4 3 . . . Leg 1 | . . . . . . . . . . . 1 Wheel 17 | 1 1 5 3 1 . . 1 3 1 1 . Hover 1 | . . . . . . . 1 . . . . Flight . | . . . . . . . . . . . . Utility 69 | 2 7 4 10 . 2 . 17 17 1 2 7 Device 17 | 1 . 1 4 . . . 5 6 . . . Storage 12 | 1 4 . . . 1 . 2 1 . 1 2 Processor 6 | . . . 1 . . . 5 . . . . Hackware 5 | . . . . . . . . 3 1 . 1 Protection 29 | . 3 3 5 . 1 . 5 7 . 1 4 Artifact . | . . . . . . . . . . . . Weapon 102 | 2 11 7 26 . 1 5 23 21 1 2 3 Energy Gun 28 | . 3 . 4 . . . 14 6 . . 1 Energy Cannon 8 | . . . 4 . . . 1 1 . 1 1 Ballistic Gun 16 | 2 4 . 6 . . 1 1 2 . . . Ballistic Cannon 6 | . . 3 . . . . . 3 . . . Launcher 13 | . 2 2 5 . . 2 1 1 . . . Special Weapon 1 | . 1 . . . . . . . . . . Impact Weapon 19 | . 1 2 7 . . . 1 7 . 1 . Slashing Weapon 2 | . . . . . . 1 . . . . 1 Piercing Weapon 7 | . . . . . . 1 5 1 . . . Special Melee Weapon 2 | . . . . . 1 . . . 1 . . Unidentified Prototypes 8 | . 1 . 1 . . . 2 3 . 1 . Parts Lost 61 | . 1 6 16 . . 4 11 4 . 4 15 Power 11 | . 1 2 2 . . 1 2 1 . . 2 Propulsion 15 | . . 1 6 . . 1 2 1 . 1 3 Utility 21 | . . 2 4 . . . 6 2 . 1 6 Weapon 14 | . . 1 4 . . 2 1 . . 2 4 Highest Loss Streak 15 | . 1 3 4 . . 3 6 2 . 4 15 To Critical Strikes 1 | . . . 1 . . . . . . . . Average Slot Usage (%) 93 | . 99 98 92 100 85 96 95 94 93 60 69 Engine 8 | . 12 14 7 11 11 10 7 4 6 1 1 Treads 6 | . 5 5 9 . . 5 8 7 6 1 . Wheel 14 | . 22 22 10 22 22 16 7 11 13 10 11 Device 6 | . 3 . 7 11 11 11 7 10 6 6 3 Storage 10 | . 14 14 11 11 11 11 10 7 6 1 5 Processor 8 | . . . 11 11 11 11 18 7 6 6 6 Hackware 3 | . . . . . . . . 11 26 21 24 Protection 12 | . 10 13 13 11 11 11 15 13 6 1 7 Energy Gun 5 | . 9 4 5 . . . 8 7 6 1 . Ballistic Gun 2 | . 10 . 2 . . 5 . . . . . Launcher 1 | . 1 2 1 11 . 5 . . . . . Impact Weapon 4 | . 5 11 7 11 . . 1 4 4 4 5 Piercing Weapon 1 | . . . . . . 4 5 1 . . . Naked Turns 2 | . . . . . . . . . . . 2 Heaviest Build 92 | 13 52 56 59 57 51 57 70 86 62 60 92 Greatest Support 48 | 20 32 32 40 32 32 32 22 48 44 44 44 Greatest Overweight (x) 16 | . 1 5 16 3 1 3 4 6 1 1 15 Average Overweight (x) 1 | . . 1 2 1 1 1 3 2 1 . 1 Largest Inventory Capacity 25 | 8 20 20 20 20 20 20 20 20 20 20 25 Average Capacity 18 | 7 14 20 20 20 20 20 20 20 20 8 18 Most Carried 20 | 8 20 20 20 18 20 20 20 20 19 19 9 Average Carried 16 | 5 13 19 17 17 19 18 19 19 18 8 4 Final Capacity 20 | 8 20 20 20 20 20 20 20 20 20 5 5 Final Carried 20 | 8 20 19 17 18 20 19 20 20 18 5 3 Class Distribution -------------------- 70% | Mutant 16% | Scavenger-Mutant 12% | Hacker-Mutant Dominant Class ---------------- Mutant | -10/Materials Mutant | -10/Mines Mutant | -9/Materials Mutant | -9/Mines Mutant | -9/Exiles Mutant | -8/Mines Mutant | -8/Materials Scavenger-Mutant | -7/Factory Hacker-Mutant | -6/Factory Hacker-Mutant | -6/Waste Hacker-Mutant | -6/Factory Resources | -11 -10 -10 -9 -9 -9 -8 -8 -7 -6 -6 -6 ----------- Run | Scr Mat Min Mat Min Exi Min Mat Fac Fac Was Fac Matter Collected 3434 | 345 178 778 607 . 165 176 530 480 . . 175 Remotely . | . . . . . . . . . . . . Salvage Created 4657 | 216 308 481 995 9 . 219 1175 833 . . 421 Parts 256 | 14 28 10 44 4 . 25 84 35 . . 12 Haulers Intercepted 7 | . 2 . 3 . . . 2 . . . . Recyclers Shooed 8 | . 4 1 1 . . . 1 1 . . . Parts Field Recycled . | . . . . . . . . . . . . Retrieved Matter . | . . . . . . . . . . . . Parts Self-Destructed . | . . . . . . . . . . . . Prevented . | . . . . . . . . . . . . Kills | -11 -10 -10 -9 -9 -9 -8 -8 -7 -6 -6 -6 ------- Run | Scr Mat Min Mat Min Exi Min Mat Fac Fac Was Fac Combat Hostiles Destroyed 98 | . 9 17 25 4 . 5 21 9 . . 8 Melee 20 | . . 7 4 . . . 5 . . . 4 Guns 26 | . 3 1 4 . . . 10 6 . . 2 Cannons 7 | . . 4 . . . . 1 2 . . . AOE 35 | . 6 5 12 4 . 5 3 . . . . Classes Destroyed 18 | 3 6 2 2 . . . 3 1 . . 1 Worker 16 | 2 1 4 3 . . 2 1 1 . . 2 Builder 14 | . 2 2 3 . . . 2 3 . . 2 Tunneler 9 | 4 . 1 . . . 2 1 1 . . . Hauler 7 | . 2 . 3 . . . 2 . . . . Recycler 10 | 1 . 3 2 . . 1 . 3 . . . Operator 5 | . 3 . 1 . . . 1 . . . . Watcher 6 | . 1 . 1 . . . 2 2 . . . Swarmer 29 | . 6 . 11 4 . 3 2 . . . 3 Cutter 2 | . . . . . . . 2 . . . . Grunt 30 | . 3 2 6 . . 2 10 3 . . 4 Brawler 2 | . . . 1 . . . 1 . . . . Duelist 1 | . . . . . . . . . . . 1 Sentry 15 | . . . 7 . . . 4 4 . . . Demolisher 2 | . . 2 . . . . . . . . . Hunter 1 | . . . . . . . 1 . . . . Programmer 2 | . . . . . . . . 2 . . . Heavy 1 | . . . . . . . 1 . . . . Assembled 13 | . . 13 . . . . . . . . . Best Kill Streak 6 | 2 5 6 6 4 . 3 4 3 . . 4 Combat Bots Only 6 | . 4 4 6 4 . 3 4 3 . . 4 Max Kills in Single Turn 3 | 1 3 2 3 3 . 2 1 1 . . 1 Gunslinging . | . . . . . . . . . . . . Exploded 3 | . 2 2 3 3 . 2 1 . . . . Melee 1 | . . 1 1 . . . 1 . . . 1 Uniques/NPCs Destroyed . | . . . . . . . . . . . . Combat | -11 -10 -10 -9 -9 -9 -8 -8 -7 -6 -6 -6 -------- Run | Scr Mat Min Mat Min Exi Min Mat Fac Fac Was Fac Damage Taken 9068 | . 323 973 1779 38 . 334 1699 1033 53 275 2561 Core 1792 | . 30 184 289 . . 73 256 106 . 237 617 Absorbed by Shields . | . . . . . . . . . . . . Redirected to Shielding 197 | . . . 56 2 . 16 96 27 . . . Regen/Repaired (Parts) 120 | . . . . . . . 120 . . . . Core Remaining (%) 52 | 100 . 14 . . . 9 53 84 . . . Volleys Fired 307 | 12 57 40 56 2 . 7 78 40 . . 15 Largest 2 | 2 2 2 2 1 . 1 2 2 . . 1 Hottest 130 | 40 112 112 112 33 . 33 122 130 . . 75 Shots Fired 411 | 24 76 43 73 2 . 8 110 60 . . 15 Gun 292 | 24 70 9 48 . . . 94 38 . . 9 Cannon 71 | . . 23 9 . . . 11 22 . . 6 Launcher 47 | . 5 11 16 2 . 8 5 . . . . Special 1 | . 1 . . . . . . . . . . Kinetic 126 | 24 40 23 16 . . . 2 21 . . . Thermal 134 | . 31 9 32 . . . 36 17 . . 9 Explosive 47 | . 5 11 16 2 . 8 5 . . . . Electromagnetic 104 | . . . 9 . . . 67 22 . . 6 Robot Hit Streak 22 | 8 7 4 11 . . 4 18 22 . . 6 Robot Miss Streak 8 | 2 8 5 2 2 . 4 3 6 . . 1 Penetration Max . | . . . . . . . . . . . . Secondary Targets 2 | . . . . . . . 2 . . . . Max Gunslinging Chain 1 | . . . . . . . 1 . . . . Shots Hit Robots 366 | 15 47 39 68 . 6 10 95 55 . . 31 Core Hits 204 | 8 22 22 38 3 . 13 46 44 . . 8 Critical Kills 6 | 1 . 2 1 . . . . . . . 2 Critical Parts Destroyed 14 | . 1 3 7 . . . . 1 . . 2 Critical Strikes 34 | 1 4 5 10 . . . 5 4 . . 5 Burn 6 | . 3 . 2 . . . 1 . . . . Destroy 2 | 1 . 1 . . . . . . . . . Blast 2 | . . . . . . . . 2 . . . Corrupt 3 | . . . . . . . 2 1 . . . Smash 19 | . 1 4 8 . . . . 1 . . 5 Impale 2 | . . . . . . . 2 . . . . Melee Attacks 209 | . 5 30 30 . 6 6 29 54 2 . 47 Impact 152 | . 5 30 30 . . . 2 37 2 . 46 Slashing 2 | . . . . . . 1 . . . . 1 Piercing 49 | . . . . . . 5 27 17 . . . Sneak Attacks 44 | . 2 9 7 . 6 6 3 7 . . 4 Combat Hostiles 6 | . . . . . 6 . . . . . . Follow-up Attacks . | . . . . . . . . . . . . Damage Inflicted 12886 | 192 1308 1452 3125 228 . 905 2544 1808 . . 1324 Guns 3937 | 192 644 88 563 . . . 1522 775 . . 153 Cannons 1200 | . . 285 217 . . . 222 367 . . 109 Explosions 3241 | . 518 280 1340 228 . 540 335 . . . . Melee 4508 | . 146 799 1005 . . 365 465 666 . . 1062 Ramming . | . . . . . . . . . . . . Kinetic 1355 | 192 408 285 155 . . . 25 290 . . . Thermal 2481 | . 236 88 783 98 . . 720 403 . . 153 Explosive 2768 | . 518 280 965 130 . 540 335 . . . . Electromagnetic 1774 | . . . 217 . . . 999 449 . . 109 Impact 3503 | . 146 799 1005 . . . 84 511 . . 958 Slashing 193 | . . . . . . 89 . . . . 104 Piercing 812 | . . . . . . 276 381 155 . . . Highest Corruption 10 | . . . 10 10 10 10 . 3 . . . Average Corruption 7 | . . . 9 10 10 10 . 1 . . . Corruption Purged . | . . . . . . . . . . . . Corruption Blocked . | . . . . . . . . . . . . Effects 86 | . . . 34 3 18 25 . 6 . . . Message Errors 23 | . . . 11 1 4 7 . . . . . Matter Fused 23 | . . . 9 2 5 6 . 1 . . . Heat Flow Errors 13 | . . . 4 . 2 4 . 3 . . . Energy Discharges 8 | . . . 4 . 2 1 . 1 . . . Parts Rejected 1 | . . . 1 . . . . . . . . Data Loss (minor) 6 | . . . 1 . 2 2 . 1 . . . Data Loss (major) 6 | . . . 2 . 2 2 . . . . . Misfires 1 | . . . . . . 1 . . . . . Alerts 1 | . . . . . . 1 . . . . . Misdirections 2 | . . . . . 1 1 . . . . . Weapon Failures 2 | . . . 2 . . . . . . . . Overload Shots . | . . . . . . . . . . . . Overflow Damage 1777 | . 192 333 626 10 . 110 18 266 . . 222 Projectiles 47 | . . 46 . . . . 1 . . . . Explosions 231 | . 106 19 55 10 . 41 . . . . . Melee 1499 | . 86 268 571 . . 69 17 266 . . 222 Knockbacks 16 | . . 5 1 . . . . 2 . . 8 Impact 11 | . . 2 1 . . . . 2 . . 6 Kinetic 2 | . . 2 . . . . . . . . . Secondary 3 | . . 1 . . . . . . . . 2 Self-Inflicted Damage 329 | . 65 28 33 26 . 153 24 . . . . Shots 13 | . 3 1 1 1 . 6 1 . . . . Rammed . | . . . . . . . . . . . . Targets Rammed . | . . . . . . . . . . . . Kicked . | . . . . . . . . . . . . Crushed . | . . . . . . . . . . . . Highest Temperature 376 | . 120 313 267 . 204 260 376 236 . . 145 Average Temperature 84 | . 32 92 66 . 97 87 115 79 . . 59 Received Heat Transfer 2192 | . 81 182 447 . . 81 639 267 . . 495 Effects 6 | . . 1 . . . . 5 . . . . Energy Bleed 2 | . . 1 . . . . 1 . . . . Interference 3 | . . . . . . . 3 . . . . Damage (minor) 1 | . . . . . . . 1 . . . . Siege Activations . | . . . . . . . . . . . . Robots Corrupted 4 | . . . 1 . . . 2 1 . . . Combat Hostiles 4 | . . . 1 . . . 2 1 . . . Parts Fried 55 | . 4 10 22 . . . 6 7 . . 6 Impact Corruptions 55 | . 3 14 21 . . . . 6 . . 11 Robots Melted 1 | . . . 1 . . . . . . . . Combat Hostiles 1 | . . . 1 . . . . . . . . Parts Melted 12 | . 1 . 6 . . . 5 . . . . Heat Transferred 4356 | . 740 185 1336 100 . . 1369 330 . . 296 Parts Sabotaged . | . . . . . . . . . . . . Parts Stolen . | . . . . . . . . . . . . Parts Stripped . | . . . . . . . . . . . . Power Chain Reactions 1 | . . . 1 . . . . . . . . Missiles Intercepted . | . . . . . . . . . . . . Alert | -11 -10 -10 -9 -9 -9 -8 -8 -7 -6 -6 -6 ------- Run | Scr Mat Min Mat Min Exi Min Mat Fac Fac Was Fac Peak Influence 515 | 35 301 192 515 419 . 221 350 185 2 . 182 Initial 200 | . 22 45 37 200 . . 15 79 . . . Average 126 | 14 173 112 239 363 . 60 129 63 1 . 64 Maximum Alert Level 2 | . 1 . 2 2 . 1 1 . . . . Low Security (%) 79 | 100 66 100 32 . . 92 86 100 100 100 100 Level 1 18 | . 33 . 60 26 . 7 13 . . . . Level 2 1 | . . . 6 73 . . . . . . . Level 3 . | . . . . . . . . . . . . Level 4 . | . . . . . . . . . . . . Level 5 . | . . . . . . . . . . . . High Security . | . . . . . . . . . . . . Max Security . | . . . . . . . . . . . . Squads Dispatched 16 | . 2 . 2 . . . 4 6 . . 2 Investigation 5 | . 1 . 1 . . . 1 1 . . 1 Extermination 2 | . . . . . . . . 2 . . . Reinforcement 9 | . 1 . 1 . . . 3 3 . . 1 Assault . | . . . . . . . . . . . . Garrison . | . . . . . . . . . . . . Intercept . | . . . . . . . . . . . . Searches Triggered . | . . . . . . . . . . . . Construction Impeded 3 | . . . . . . . . 2 . . 1 Haulers Reinforced 1 | . . . . . . . . 1 . . . Active Scanning Responses . | . . . . . . . . . . . . Cargo Convoy Interrupts . | . . . . . . . . . . . . Stealth | -11 -10 -10 -9 -9 -9 -8 -8 -7 -6 -6 -6 --------- Run | Scr Mat Min Mat Min Exi Min Mat Fac Fac Was Fac Distress Signals 11 | . . . 2 . . . 7 2 . . . Communications Jammed . | . . . . . . . . . . . . Distress Signals . | . . . . . . . . . . . . Times Spotted 171 | . 26 26 31 4 . 7 39 16 1 6 15 Peak Tracking Total 8 | . 5 5 8 4 . 3 6 3 3 6 6 Tactical Retreats 15 | . . 10 2 . . . 2 . . . 1 Traps | -11 -10 -10 -9 -9 -9 -8 -8 -7 -6 -6 -6 ------- Run | Scr Mat Min Mat Min Exi Min Mat Fac Fac Was Fac Traps Triggered 3 | . . . 1 . . . . . 1 . 1 Indirectly . | . . . . . . . . . . . . Trap Hack Attempts . | . . . . . . . . . . . . Triggered . | . . . . . . . . . . . . Disarmed . | . . . . . . . . . . . . Reprogrammed . | . . . . . . . . . . . . Reused . | . . . . . . . . . . . . Traps Extracted . | . . . . . . . . . . . . Installed . | . . . . . . . . . . . . Triggered . | . . . . . . . . . . . . Machines | -11 -10 -10 -9 -9 -9 -8 -8 -7 -6 -6 -6 ---------- Run | Scr Mat Min Mat Min Exi Min Mat Fac Fac Was Fac Machines Disabled 16 | . 3 . 5 4 . 1 3 . . . . Max in Single Turn 3 | . 1 . 3 3 . 1 1 . . . . Garrison Access 2 | . . . . . . . 1 1 . . . Machines Sabotaged . | . . . . . . . . . . . . Garrisons Compromised . | . . . . . . . . . . . . Overloaded Fab Kills . | . . . . . . . . . . . . Hacking | -11 -10 -10 -9 -9 -9 -8 -8 -7 -6 -6 -6 --------- Run | Scr Mat Min Mat Min Exi Min Mat Fac Fac Was Fac Machines Accessed 45 | . 8 . 9 . . . 12 16 . . . Terminals 32 | . 6 . 6 . . . 9 11 . . . Fabricators 2 | . . . . . . . . 2 . . . Repair Stations 2 | . . . . . . . 1 1 . . . Recycling Units 5 | . 2 . 2 . . . . 1 . . . Scanalyzers 2 | . . . 1 . . . 1 . . . . Garrison Access 2 | . . . . . . . 1 1 . . . Total Hacks 121 | . 17 . 30 . . . 36 38 . . . Successful 61 | . 9 . 12 . . . 21 19 . . . Failed 60 | . 8 . 18 . . . 15 19 . . . Catastrophic 13 | . 1 . 2 . . . 3 7 . . . Database Lockouts . | . . . . . . . . . . . . Manual 77 | . 12 . 21 . . . 23 21 . . . Terminals 93 | . 15 . 24 . . . 26 28 . . . Fabricators 3 | . . . . . . . . 3 . . . Repair Stations 7 | . . . . . . . 5 2 . . . Recycling Units 6 | . 2 . 3 . . . . 1 . . . Scanalyzers 6 | . . . 3 . . . 3 . . . . Garrison Access 6 | . . . . . . . 2 4 . . . Terminal Hacks 30 | . 4 . 4 . . . 9 13 . . . Record 1 | . . . . . . . . 1 . . . Part Schematic 2 | . . . . . . . . 2 . . . Robot Analysis 3 | . 1 . . . . . 2 . . . . Open DSF 1 | . . . . . . . . 1 . . . Level Access Points 2 | . . . . . . . 1 1 . . . Branch Access Points 1 | . . . . . . . 1 . . . . Terminal Index 4 | . 1 . 1 . . . 1 1 . . . Unreport Threat 5 | . . . 1 . . . 1 3 . . . Locate Traps 1 | . . . . . . . . 1 . . . Recall Extermination 1 | . . . . . . . . 1 . . . Zone Layout 9 | . 2 . 2 . . . 3 2 . . . Fabricator Hacks 3 | . . . . . . . . 3 . . . Load Schematic 2 | . . . . . . . . 2 . . . Build 1 | . . . . . . . . 1 . . . Repair Station Hacks 4 | . . . . . . . 3 1 . . . Scan Component 3 | . . . . . . . 2 1 . . . Repair 1 | . . . . . . . 1 . . . . Recycling Unit Hacks 5 | . 2 . 3 . . . . . . . . Report Inventory 2 | . . . 2 . . . . . . . . Retrieve Components 3 | . 2 . 1 . . . . . . . . Scanalyzer 6 | . . . 3 . . . 3 . . . . Insert Component 4 | . . . 2 . . . 2 . . . . Analyze 2 | . . . 1 . . . 1 . . . . Garrison Access Hacks 2 | . . . . . . . 1 1 . . . Seal Access 2 | . . . . . . . 1 1 . . . Unauthorized Hacks 11 | . 3 . 2 . . . 5 1 . . . Terminals 11 | . 3 . 2 . . . 5 1 . . . Assimilate 1 | . . . . . . . 1 . . . . Botnet 8 | . 3 . 2 . . . 3 . . . . Operators 2 | . . . . . . . 1 1 . . . Fabricators . | . . . . . . . . . . . . Repair Stations . | . . . . . . . . . . . . Recycling Units . | . . . . . . . . . . . . Scanalyzers . | . . . . . . . . . . . . Garrison Access . | . . . . . . . . . . . . Data Cores Recovered . | . . . . . . . . . . . . Used . | . . . . . . . . . . . . Hacking Detections 39 | . 6 . 7 . . . 12 14 . . . Full Trace Events 3 | . 1 . . . . . 1 1 . . . Feedback Events . | . . . . . . . . . . . . Feedback Blocked . | . . . . . . . . . . . . Robot Schematics Acquired . | . . . . . . . . . . . . Robots Built . | . . . . . . . . . . . . Authchips . | . . . . . . . . . . . . Time . | . . . . . . . . . . . . Total Robot Build Rating . | . . . . . . . . . . . . Part Schematics Acquired 4 | . . . 1 . . . 1 2 . . . Parts Built 1 | . . . . . . . . 1 . . . Authchips . | . . . . . . . . . . . . Time 36 | . . . . . . . . 36 . . . Total Part Build Rating 3 | . . . . . . . . 3 . . . Parts Repaired 1 | . . . . . . . 1 . . . . Time 38 | . . . . . . . 38 . . . . Parts Recycled . | . . . . . . . . . . . . Recycled Matter . | . . . . . . . . . . . . Retrieved Matter . | . . . . . . . . . . . . Retrieved Components 13 | . 11 . 2 . . . . . . . . Parts Scanalyzed 2 | . . . 1 . . . 1 . . . . Part Schematics Acquired 2 | . . . 1 . . . 1 . . . . Parts Damaged . | . . . . . . . . . . . . Bothacking | -11 -10 -10 -9 -9 -9 -8 -8 -7 -6 -6 -6 ------------ Run | Scr Mat Min Mat Min Exi Min Mat Fac Fac Was Fac Used RIF Installer . | . . . . . . . . . . . . Robots Hacked . | . . . . . . . . . . . . Non-combat . | . . . . . . . . . . . . Combat . | . . . . . . . . . . . . Robot Hacks Applied . | . . . . . . . . . . . . Relay Couplers Released . | . . . . . . . . . . . . Fabnet Peak Effective % . | . . . . . . . . . . . . Robots Rewired 2 | . . . . . 2 . . . . . . Allies Hacked . | . . . . . . . . . . . . Hacks Repelled . | . . . . . . . . . . . . Allies | -11 -10 -10 -9 -9 -9 -8 -8 -7 -6 -6 -6 -------- Run | Scr Mat Min Mat Min Exi Min Mat Fac Fac Was Fac Total Allies 3 | . . . . . 2 . 1 . . . . Largest Group 2 | . . . . . 2 2 2 . . . . Highest-Rated Group 31 | . . . . . 29 29 31 . . . . Highest-Rated Ally 21 | . . . . . 21 21 21 . . . . Total Orders . | . . . . . . . . . . . . Ally Attacks 27 | . . . . . . 10 17 . . . . Total Damage 493 | . . . . . . 158 335 . . . . Kills 9 | . . . . . . 3 6 . . . . Allies Corrupted . | . . . . . . . . . . . . Allies Melted . | . . . . . . . . . . . . Intel | -11 -10 -10 -9 -9 -9 -8 -8 -7 -6 -6 -6 ------- Run | Scr Mat Min Mat Min Exi Min Mat Fac Fac Was Fac Robot Analysis Total 3 | . 1 . . . . . 2 . . . . Derelict Logs Recovered 2 | . . 1 . 1 . . . . . . . Drone Launches . | . . . . . . . . . . . . Drone Recoveries . | . . . . . . . . . . . . Exploration | -11 -10 -10 -9 -9 -9 -8 -8 -7 -6 -6 -6 ------------- Run | Scr Mat Min Mat Min Exi Min Mat Fac Fac Was Fac Turns Passed 8574 | 254 1276 772 1253 69 592 678 1799 1252 74 212 343 Spaces Moved 4888 | 128 852 450 575 55 498 491 770 672 58 183 156 Core 9 | 1 . . 1 . . . . . . . 7 Treads 440 | 122 155 4 68 . . . 72 19 . . . Legs . | . . . . . . . . . . . . Wheels 4439 | 5 697 446 506 55 498 491 698 653 58 183 149 Hover . | . . . . . . . . . . . . Flight . | . . . . . . . . . . . . Fastest Speed 50 | 50 100 105 115 115 115 115 145 120 115 95 50 Average Speed 135 | 156 121 125 156 115 115 128 173 131 115 101 116 Slowest Speed 850 | 160 240 320 850 145 115 145 385 400 115 115 800 Overloaded Moves . | . . . . . . . . . . . . Propulsion Burnouts . | . . . . . . . . . . . . Robots Hopped . | . . . . . . . . . . . . Cave-ins Triggered 1 | . . . 1 . . . . . . . . Exploration Rate (%) 50 | 6 96 61 55 16 90 98 68 23 2 83 5 Regions Visited 11 Branch Regions 4 Pre-discovered Areas . | . . . . . . . . . . . . Known Exits Taken 2 | . . . . . . . 1 1 . . . Unknown Exits Taken 7 | 1 1 1 1 1 1 1 . . . . . Scrap Searched 2 | . . 1 . . . 1 . . . . . Spaces Dug 65 | . 1 . 6 . . . 13 36 2 . 7 Terrain Destroyed 355 | . 33 54 100 27 . 59 31 42 2 . 7 Melee 64 | . . . 6 . . . 13 36 2 . 7 Projectile 14 | . 1 7 . . . . . 6 . . . AOE 277 | . 32 47 94 27 . 59 18 . . . . Terrain Rammed . | . . . . . . . . . . . . Walls Destroyed . | . . . . . . . . . . . . Machines Disabled . | . . . . . . . . . . . . Actions | -11 -10 -10 -9 -9 -9 -8 -8 -7 -6 -6 -6 --------- Run | Scr Mat Min Mat Min Exi Min Mat Fac Fac Was Fac Total 6139 | 154 1012 556 790 58 515 527 1085 921 63 206 252 Wait 306 | . 22 3 63 . . 12 102 74 . 17 13 Move 4878 | 127 851 449 574 54 497 490 769 671 58 182 156 Hop . | . . . . . . . . . . . . Pick Up 120 | 8 30 7 17 1 4 4 28 14 . 1 6 Fast Attach 49 | 7 5 4 4 . . . 12 8 . 5 4 Attach 62 | . 2 5 19 . 1 6 12 7 2 . 8 Detach 11 | . 1 . 2 . 2 1 3 1 . . 1 Swap 110 | . 14 11 22 1 2 1 27 30 1 . 1 Drop 87 | . 25 7 3 . 3 . 25 22 . 1 1 Fire 307 | 12 57 40 56 2 . 7 78 40 . . 15 Melee 209 | . 5 30 30 . 6 6 29 54 2 . 47 Ram . | . . . . . . . . . . . . Kick . | . . . . . . . . . . . . Crush . | . . . . . . . . . . . . Escape Stasis . | . . . . . . . . . . . . Rewire . | . . . . . . . . . . . . Trap . | . . . . . . . . . . . . Miscellaneous . | . . . . . . . . . . . . Route ------- -11/Scrapyard -10/Materials (discovered 5 exits: *Mat x3 / [*Min x2]) -10/Mines (discovered 2 exits: *Mat x2) -9/Materials (discovered 6 exits: *Mat x2 / [*Min x2] / [*Sto x2]) -9/Mines (discovered 2 exits: *Mat / *Exi) -9/Exiles (discovered 2 exits: [*Min x2]) -8/Mines (discovered 2 exits: *Mat x2) -8/Materials (discovered 3 exits: *Fac x3) -7/Factory (discovered 4 exits: *Fac x4) -6/Factory -6/Waste -6/Factory History --------- Turn | Location | Event 16 | -11/Scrapyard | Discovered new exit (range 16) 255 | -11/Scrapyard | Entered Materials 303 | -10/Materials | Build established: Mutant 309 | -10/Materials | Discovered new exit (range 16) 653 | -10/Materials | Discovered new exit (range 16) 1307 | -10/Materials | Discovered new exit (range 16) 1425 | -10/Materials | Discovered new exit (range 14) 1514 | -10/Materials | Discovered new exit (range 16) 1531 | -10/Materials | Entered Mines 1615 | -10/Mines | A weapon hastily lodged in a ceiling crevice suddenly fell to the ground 1685 | -10/Mines | Assembled infested the area 1690 | -10/Mines | Assisted by a Guerilla fighting off Assembled 1761 | -10/Mines | Discovered new exit (range 5) 2040 | -10/Mines | Core integrity fell below 50% 2049 | -10/Mines | Discovered new exit (range 13) 2147 | -10/Mines | Learned 2 Materials zone layouts 2276 | -10/Mines | Core integrity fell below 20% 2301 | -10/Mines | Lost 3 parts (1n1u1w) 2303 | -10/Mines | Entered Materials 2303 | -9/Materials | Evolved 2 slots: Utility x2 2354 | -9/Materials | Discovered new exit (range 5) 2450 | -9/Materials | Discovered new exit (range 16) 2494 | -9/Materials | Discovered new exit (range 10) 2622 | -9/Materials | Build established: Scavenger-Mutant 2646 | -9/Materials | Crushed by falling debris 2688 | -9/Materials | Discovered new exit (range 15) 2788 | -9/Materials | System corruption reached 10% 2818 | -9/Materials | Lost 4 parts (1p2u1w) 2979 | -9/Materials | Core integrity fell below 50% 3013 | -9/Materials | Build established: Mutant 3038 | -9/Materials | Lost 3 parts (2n1w) 3240 | -9/Materials | Lost 4 parts (1n2u1w) 3265 | -9/Materials | Discovered new exit (range 16) 3472 | -9/Materials | Discovered new exit (range 12) 3556 | -9/Materials | Entered Mines 3563 | -9/Mines | Received a Rocket Launcher from a helpful Derelict 3584 | -9/Mines | Discovered new exit (range 9) 3604 | -9/Mines | Met a Derelict bent on vengeance 3621 | -9/Mines | Deemed a non-threat by the Exiles lab entrance 3621 | -9/Mines | Discovered new exit (range 5) 3625 | -9/Mines | Entered Exiles 3625 | -9/Exiles | Found Exiles lab destroyed 3664 | -9/Exiles | Discovered new exit (range 14) 4202 | -9/Exiles | Discovered new exit (range 12) 4217 | -9/Exiles | Entered Mines 4217 | -8/Mines | Accompanied by 2 allies 4381 | -8/Mines | Discovered new exit (range 5) 4554 | -8/Mines | Core integrity fell below 20% 4590 | -8/Mines | Lost 3 parts (1p1n1w) 4593 | -8/Mines | Discovered new exit (range 9) 4895 | -8/Mines | Entered Materials 4895 | -8/Materials | Accompanied by 1 ally 4895 | -8/Materials | Evolved 2 slots: Utility x2 5402 | -8/Materials | Discovered new exit (range 8) 5821 | -8/Materials | Lost 5 parts (1p1n3u) 5944 | -8/Materials | Identified exit to Factory 6126 | -8/Materials | Repaired Adv. Treads 6434 | -8/Materials | Lost 6 parts (1p1n3u1w) 6694 | -8/Materials | Entered Factory 6694 | -7/Factory | Evolved 2 slots: Propulsion x1, Utility x1 6885 | -7/Factory | Build established: Scavenger-Mutant 7389 | -7/Factory | Fabricated System Shield (x1) 7762 | -7/Factory | Build established: Hacker-Mutant 7792 | -7/Factory | Identified exit to Factory 7946 | -7/Factory | Entered another Factory area 7946 | -6/Factory | Evolved 2 slots: Propulsion x1, Utility x1 8020 | -6/Factory | Sucked down chute 8020 | -6/Factory | Entered Waste 8027 | -6/Waste | Spotted C-40 Crusher 8030 | -6/Waste | Spotted C-40 Crusher 8054 | -6/Waste | Spotted C-40 Crusher 8068 | -6/Waste | Crushed by Compactor (1 part destroyed, 1 dropped) 8071 | -6/Waste | Crushed by Compactor (1 part destroyed, 1 dropped) 8072 | -6/Waste | Crushed by Compactor (0 parts destroyed, 1 dropped) 8076 | -6/Waste | Crushed by Compactor (0 parts destroyed, 1 dropped) 8079 | -6/Waste | Crushed by Compactor (0 parts destroyed, 1 dropped) 8079 | -6/Waste | Crushed by Compactor (1 part destroyed, 1 dropped) 8092 | -6/Waste | Spotted C-40 Crusher 8110 | -6/Waste | Lost 4 parts (1n1u2w) 8154 | -6/Waste | Spotted C-40 Crusher 8162 | -6/Waste | Spotted C-40 Crusher 8205 | -6/Waste | Discovered new exit (range 11) 8228 | -6/Waste | Identified exit to Factory 8232 | -6/Waste | Entered Factory 8542 | -6/Factory | Core integrity fell below 50% 8559 | -6/Factory | Core integrity fell below 20% 8573 | -6/Factory | Released all parts (3) 8575 | -6/Factory | Destroyed by H-66 Slayer with Heavy Assault Rifle Last Messages --------------- 08565_ Slug penetrates Wall. 08566_ K-01 Serf collects debris. 08566_ System Shield destroyed. 08567_ K-01 Serf collects debris. 08568_ Penetrated by Slug. 08570_ Greatsword destroyed. 08570_ K-01 Serf collects debris. 08571_ U-05 Engineer builds a Wall. 08572_ Slug penetrates Wall. 08573_ Released System Shield. 08573_ Released Imp. Signal Interpreter. 08573_ Released Hcp. Storage Unit. 08573_ Penetrated by Slug. 08573_ Slug penetrates U-05 Engineer. 08574_ K-01 Serf collects debris. 08574_ R-10 Processor collects Wheel. 08574_ K-01 Serf collects debris. 08575_ Penetrated by Slug. 08575_ Terminal disabled. 08575_ Slug penetrates Wall. Map ----- +----------------------------------------------------+ | ?????????????????????????????????????????????????? | | ?????????????????????????????????????????????????? | | ?????????????????????????????????????????????????? | | ?????????????????????????????????????????????????? | | ?????????????????????????????????????????????????? | | ?????????????????????????????????????????????????? | | ?????????????????????????????????????????????????? | | ?????????????????????????????????????????????????? | | ?????????????????????????????????????????????????? | | ?????????????????????????????????????????????????? | | ??????????????????????? ???????????????????????? | | ??????????????????????# ???????????????????????? | | ??????????????????????# k???????????????????????? | | ??????????????????????# ???????????????????????? | | ??????????????????????# ???????????????????????? | | ??????????????????????# ???????????????????????? | | ??????????????????????# #??????????????????????? | | ????????????????????### ###??#?????????????????? | | ????????????????? ??# #? #?????????????????? | | ????????????????? ?# ## ##????????????????? | | ##???????????????? # ?????????????????? | | ##????????????????? + ??????????????????? | | #???????????????????# ???????????????????? | | #???????????????????# #????????????????????? | | #???????????????????# #????????????????????? | | #????????############# @ ###########???????????? | | #???????# # #= #???????????? | | #???????# """ """ # u#%*% #???????????? | | #???????# """ """ + %%k%% #???????????? | | ##??????# """ """ ! # !%#=!* #???????????? | | ##??????# # hh#*%/ #???????????? | | ##??????############## *%#%= #???????????? | | ############### % # #*! #???????????? | | ## # """ # R# #???????????? | | ## """"""""" # """ # ###########???????????? | | ## # """ + u#?????????????????????? | | ## """"""""" # # #?????????????????????? | | # #"" # #?????????????????????? | | # """"""""" #"" # #?????????????????????? | | + #"" !!# #?????????????????????? | | # """"""""" #G !!# #?????????????????????? | | # #"" # #?????????????????????? | | # """"""""" #?? # #?????????????????????? | | # #"" # ??????????????????????? | | # # #?? ??????????????????????? | | ################# ###???????????????????????????? | | #????????????##?????????????????????????????????? | | #???????????????????????????????????????????????? | | ???????????????????????????????????????????????? | | ! ???????????????????????????????????????????????? | +----------------------------------------------------+ Best States ------------- Heat Dissipation 61 Energy Generation 18 Energy Capacity 280 Matter Stores 500 Matter Capacity 500 Sight Range 16 Robot Scan Range 15 Terrain Scan Range 16 Terrain Scan Density 110 Armor Coverage 600 Resistance: KI 30 Resistance: TH 10 Power Shielding 33 Weapon Shielding 66 Evasion (%) 41 Targeting Accuracy 6 Melee Accuracy 5 Recoil Reduction 2 Offensive Hacking 20 Defensive Hacking 30 Item Schematics ----------------- Hacking Suite | -9/Materials | Scanalyzed System Shield | -8/Materials | Scanalyzed Med. Armor Plating | -7/Factory | Hacked Arm. Huge Wheel | -7/Factory | Hacked Robot Schematics ------------------ None Fabricated ------------ System Shield | x1 | -7/Factory Alien Tech Used ----------------- None Achievements -------------- None Challenges ------------ None Game ------ Seed AssembledImprovedMantle Manual? 0 Play Time 02:37:49 Cumulative 128.7 hours Start 2022.08.06 @ 08:07:32 End 2022.08.10 @ 23:03:58 Sessions 3 Manual Loads 0 Difficulty Rogue Special Mode None Game No. 76 Rogue 75 Adventurer 0 Explorer 1 Win Type - Total 0 Types 0/0/0/0/0/0/0/0/0 Lore% 36 Gallery% 46 Achievement% 33 Wizard Run 0 Options --------- ASCII 0 Keyboard 0 Movement Mouse Keybinds 0 Fullscreen 1 Font 18/SmallcapsGlow Map View 76x50 Tactical HUD 1 Map Filters NONE Filters NONE Steam 1 RUN: 2c993a3f-10dd-4ef1-adc5-ee402b6e432b